[Event "41st Zalakaros Festival 2022"]
[Site "Zalakaros"]
[Date "2022.06.07"]
[Round "3.3"]
[White "Pasztor, Ferenc"]
[Black "Papp, Levente"]
[Result "1/2-1/2"]
[ECO "A33"]
[WhiteElo "2195"]
[BlackElo "2401"]
[Annotator "TA"]
[PlyCount "38"]
[EventDate "2022.06.05"]
[EventType "swiss"]
[EventCountry "HUN"]
[SourceTitle "playchess.com"]
[Source "ChessBase"]
[SourceQuality "1"]
[TimeControl "40/5400+30:1800+30"]

{[%evp 11,25,0,14,0,2,0,3,0,0,-1,-12,-4,0,-2,-4,-18]} 1. d4 {[%emt 0:00:36]} Nf6 {[%emt 0:01:25]} 2. Nf3 {[%emt 0:00:13]} e6 {[%emt 0:01:04]} 3. c4 {[%emt 0:00:25]} c5 {[%emt 0:02:37]} 4. Nc3 {[%emt 0:00:59]} cxd4 {[%emt 0:01:15]} 5. Nxd4 {[%emt 0:00:20]} Nc6 {[%emt 0:03:05]} 6. e3 {[%emt 0:06:10]} Bb4 {[%emt 0:08:04] The position is equal. 6...Be7 is the modern continuation.} 7. Qb3 {[%emt 0:12:48] A33: Symmetrical English: 2 Nf3 Nf6 3 d4 cxd4 4 Nxd4 e6 5 Nc3 Nc6.} Bc5 {[%emt 0:14:39]} 8. Nxc6 {[%emt 0:02:12]} dxc6 {[%emt 0:00:13]} 9. Be2 {[%emt 0:03:22]} O-O {[%emt 0:00:06]} 10. O-O {[%emt 0:00:45]} Qe7 {[%emt 0:05:10]} 11. Qc2 {[%emt 0:01:20]} e5 {[%emt 0:01:56]} 12. Na4 {[%emt 0:01:55]} Bd6 {[%emt 0:13:27]} 13. e4 {[%emt 0:04:15] [#] A rather calm draw.  Weighted Error Value: White=0.03 (flawless) /Black=0.03 (flawless)} {Predecessor:} Nd7 $146 14. Be3 Nc5 15. Rfd1 Ne6 16. c5 Bc7 17. g3 Qf6 18. Rd2 Ng5 19. Bxg5 Qxg5 {0-1 (34) Voinov,S (2325)-Berestnev,V (2346) Kolomna 2012} 1/2-1/2

[Event "41st Zalakaros Festival 2022"]
[Site "Zalakaros"]
[Date "2022.06.07"]
[Round "3.4"]
[White "Okhotnik, Vladimir"]
[Black "Bodrogi, Bendeguz"]
[Result "1/2-1/2"]
[ECO "B30"]
[WhiteElo "2336"]
[BlackElo "2198"]
[Annotator "TA"]
[PlyCount "71"]
[EventDate "2022.06.05"]
[EventType "swiss"]
[EventCountry "HUN"]
[SourceTitle "playchess.com"]
[Source "ChessBase"]
[SourceQuality "1"]
[TimeControl "40/5400+30:1800+30"]

{[%evp 11,71,34,29,21,18,22,0,1,0,5,8,-18,0,10,35,36,24,37,27,41,42,35,40,0,0,0,0,0,3,0,0,0,0,0,0,0,0,-37,-46,-74,-73,-74,-73,-198,-213,-320,-137,-133,-143,-149,-23,-61,0,0,0,-25,-19,-84,0,0,0,0]} 1. e4 {[%emt 0:00:34]} c5 {[%emt 0:00:37]} 2. Nf3 {[%emt 0:00:06]} Nc6 {[%emt 0:00:07]} 3. Bb5 {[%emt 0:00:08]} Nf6 {[%emt 0:00:12]} 4. Nc3 {[%emt 0:00:13]} Qc7 {[%emt 0:00:26]} 5. O-O {[%emt 0:00:13]} Nd4 {[%emt 0:00:35]} 6. Re1 {[%emt 0:00:06]} a6 {[%emt 0:06:00]} 7. e5 {[%emt 0:00:08] B30: Sicilian: 2...Nc6 3 Bb5, lines without ...g6.} Nxb5 {[%emt 0:12:00]} 8. exf6 {[%emt 0:00:06]} Nxc3 {[%emt 0:00:45]} 9. fxg7 {[%emt 0:00:06]} ({Much worse is} 9. dxc3 gxf6 10. Nh4 d6 $15) 9... Bxg7 {[%emt 0:00:13]} 10. dxc3 {[%emt 0:00:04]} d6 {[%emt 0:03:13]} 11. Ng5 {[%emt 0:00:10][%cal Og5f7] aiming for Nxf7!} h6 {[%emt 0:11:40]} 12. Bf4 {[%emt 0:00:59] [#] Hoping for Bxd6.} hxg5 $146 {[%emt 0:09:49]} ({Predecessor:} 12... O-O 13. Ne4 f5 14. Nxd6 exd6 15. Bxd6 Qf7 16. Bxf8 Bxf8 17. Qd8 b5 18. Rad1 Bb7 {½-½ (36) Volokitin,A (2586)-Eljanov,P (2540) Alushta 2002}) 13. Bxd6 {[%emt 0:00:11]} Qd8 {[%emt 0:00:05]} (13... Qa5 14. Rxe7+ Kf8 15. Re6+ Kg8 16. Re8+) 14. Rxe7+ {[%emt 0:01:43]} Qxe7 {[%emt 0:00:20]} 15. Bxe7 {[%emt 0:00:02]} Kxe7 {[%emt 0:00:08]} 16. Qd5 {[%emt 0:00:46][%csl LRc5,LRg5] Inhibits Be5.} Kf6 {[%emt 0:02:33]} 17. f4 {[%emt 0:10:43] Chess con chili.} (17. Rf1 $5 {[%cal Rf2f4]} Be6 18. Qxc5 $11) 17... gxf4 {[%emt 0:01:29]} 18. Qxc5 {[%emt 0:04:29]} Be6 {[%emt 0:02:29]} 19. Qd4+ {[%emt 0:03:25]} Kg6 {[%emt 0:03:30]} 20. Qe4+ {[%emt 0:00:50]} Bf5 {[%emt 0:04:24] This bishop pair is nice.} 21. Qxf4 {[%emt 0:01:14]} Rad8 {[%emt 0:04:18]} 22. Qg3+ {[%emt 0:04:32]} Kh7 {[%emt 0:03:46]} 23. Qf3 {[%emt 0:05:04]} Bg6 {[%emt 0:03:03]} 24. Rd1 {[%emt 0:01:27]} ({But not} 24. Qxb7 Rb8 25. Qxa6 Rxb2 $17) 24... Rde8 {[%emt 0:08:36][%mdl 1024] Black has compensation.} 25. Rd7 {[%emt 0:10:41]} Re1+ {[%emt 0:01:10]} 26. Kf2 {[%emt 0:00:03]} Rhe8 {[%emt 0:00:14] And now ...R1e6 would win.} 27. h4 {[%emt 0:06:09] [#]} (27. Rd8 $17) 27... Rc1 $1 $19 {[%emt 0:05:51] Strongly threatening ...Ree1.} 28. Kg3 {[%emt 0:10:07] [#]} (28. h5 $142 Rxc2+ 29. Kg3) 28... Rxc2 {[%emt 0:01:41]} (28... Be5+ $1 $19 {and Black stays clearly on top.} 29. Kf2 Rxc2+ 30. Kg1 Bb8) 29. Rxf7 $17 {[%emt 0:04:25]} Bxf7 {[%emt 0:02:23]} 30. Qxf7 {[%emt 0:00:04]} Ree2 {[%emt 0:00:41]} ({Black should play} 30... Re3+ $17 31. Kh2 Rce2) 31. Qh5+ {[%emt 0:02:02]} Bh6 {[%emt 0:01:15]} (31... Kg8 $1 $15 32. Qd5+ Kf8 33. Qd8+ Kf7 34. Qd7+ Kg6 35. Qg4+ Kf6 36. Qf3+ Ke5 37. Qxb7 Bf6 38. Qb8+ Ke6 39. Qe8+ (39. Qc8+ Kf7 $17) 39... Be7 40. Qc8+ Kf7 41. Qf5+ Bf6 42. Qh5+ Kg7 43. Qg4+ Kf8 44. Qc8+ Kf7 45. Qd7+ Kg8 46. Qg4+ Kf8 47. Qc8+ Kf7 48. Qd7+ Kg6 49. Qg4+ Kh6 50. Qf4+ Kg7 51. Qg4+ Kf8) 32. Qf5+ $11 {[%emt 0:00:21]} Kg8 {[%emt 0:00:49]} 33. Qc8+ {[%emt 0:03:50]} Bf8 {[%emt 0:00:09]} 34. Qxb7 {[%emt 0:00:38]} (34. Qg4+ $11 {was the only way to keep the balance.} Bg7 35. Qc8+ Kf7 36. Qxb7+ Kg6 37. h5+ Kh7 38. Kh4) 34... Rxb2 {[%emt 0:00:26]} (34... Bd6+ $17 35. Kh3 Re3+ 36. Kg4 Rce2) 35. Qd5+ {[%emt 0:04:15]} Kh8 {[%emt 0:01:15]} 36. Qh5+ {[%emt 0:00:22] Weighted Error Value: White=0.23 (precise) /Black=0.25 (precise)} 1/2-1/2

[Event "41st Zalakaros Festival 2022"]
[Site "Zalakaros"]
[Date "2022.06.07"]
[Round "3.5"]
[White "Csonka, Balazs"]
[Black "Borsos, Bogdan"]
[Result "1-0"]
[ECO "A41"]
[WhiteElo "2498"]
[BlackElo "2200"]
[Annotator "TA"]
[PlyCount "53"]
[EventDate "2022.06.05"]
[EventType "swiss"]
[EventCountry "HUN"]
[SourceTitle "playchess.com"]
[Source "ChessBase"]
[SourceQuality "1"]
[TimeControl "40/5400+30:1800+30"]

{[%evp 9,53,69,87,96,88,85,87,84,89,81,85,52,117,114,141,143,164,142,173,167,160,148,162,153,270,266,275,265,266,256,256,239,213,0,0,0,0,3,0,0,9,0,333,341,332,322]} 1. d4 {[%emt 0:00:33]} d6 {[%emt 0:09:14]} 2. Nf3 {[%emt 0:01:02]} Bg4 {[%emt 0:00:17]} 3. e4 {[%emt 0:00:27]} Nf6 {[%emt 0:01:08]} 4. h3 {[%emt 0:06:35]} Bxf3 {[%emt 0:01:03]} 5. Qxf3 {[%emt 0:00:08]} Nc6 {[%emt 0:00:50]} 6. Bb5 {[%emt 0:02:38] [#] A41: 1 d4 d6: Tartakower System and Modern Defence.} e5 $146 {[%emt 0:05:28]} ({Predecessor:} 6... Nd7 7. c3 e5 8. Bc4 Qf6 9. Qxf6 Nxf6 10. d5 Nb8 11. Bd3 Nbd7 12. b4 g6 13. g4 h5 14. g5 Nh7 15. Rg1 Be7 {1-0 (36) Meyer,P (2345)-Vadasz,L (2365) Budapest 1994}) 7. Qc3 {[%emt 0:27:13]} exd4 {[%emt 0:03:16]} 8. Bxc6+ {[%emt 0:00:09] White is better.} bxc6 {[%emt 0:00:06]} 9. Qxc6+ {[%emt 0:00:04]} Nd7 {[%emt 0:00:33]} 10. Na3 {[%emt 0:03:13] Hoping for Nb5.} a6 {[%emt 0:05:17] [#] Inhibits Nb5.} (10... Be7 $14) 11. Bg5 $1 $16 {[%emt 0:03:53][%mdl 512]} f6 {[%emt 0:03:28]} (11... Be7 12. Bxe7) 12. Bd2 {[%emt 0:04:01] 0x0.00166aa58885dp-1022s more active pieces.} Be7 {[%emt 0:03:16]} 13. Ba5 {[%emt 0:10:32]} Ra7 {[%emt 0:05:01]} 14. O-O-O {[%emt 0:05:17]} O-O {[%emt 0:00:18]} 15. g4 {[%emt 0:01:29]} Kh8 {[%emt 0:02:11]} 16. Rxd4 {[%emt 0:04:45]} f5 {[%emt 0:00:50]} (16... Ne5 $16 17. Qa4 Qa8) 17. exf5 $18 {[%emt 0:05:25]} Bf6 {[%emt 0:03:10]} 18. Rdd1 {[%emt 0:01:28]} Ne5 {[%emt 0:01:46]} 19. Qd5 {[%emt 0:01:10] aiming for f4.} Qb8 {[%emt 0:00:10]} 20. b3 {[%emt 0:01:13]} c6 {[%emt 0:02:37]} 21. Qxd6 {[%emt 0:03:29] [#]} (21. Qd2 $18) 21... Be7 $11 {[%emt 0:01:59]} 22. Qxb8 {[%emt 0:08:34]} Bxa3+ {[%emt 0:00:20]} 23. Kb1 {[%emt 0:00:03]} Rxb8 {[%emt 0:00:09]} 24. Bc3 $40 {[%emt 0:01:16][%mdl 128] White is up to no good.} Nf3 {[%emt 0:27:03]} 25. f6 {[%emt 0:05:16]} gxf6 $2 {[%emt 0:00:30][%mdl 8192]} (25... Re8 $11) 26. Bxf6+ $18 {[%emt 0:00:09]} Kg8 {[%emt 0:00:29]} 27. Rd3 {[%emt 0:00:07] Weighted Error Value: White=0.15 (very precise) /Black=0.48} 1-0

[Event "41st Zalakaros Festival 2022"]
[Site "Zalakaros"]
[Date "2022.06.07"]
[Round "3.6"]
[White "Sammed Jaykumar, Shete"]
[Black "Daroczi, Donat"]
[Result "1-0"]
[ECO "D41"]
[WhiteElo "2400"]
[BlackElo "2132"]
[Annotator "TA"]
[PlyCount "75"]
[EventDate "2022.06.05"]
[EventType "swiss"]
[EventCountry "HUN"]
[SourceTitle "playchess.com"]
[Source "ChessBase"]
[SourceQuality "1"]
[TimeControl "40/5400+30:1800+30"]

{[%evp 26,74,22,17,18,0,39,0,17,18,13,0,0,-13,43,-48,-47,-44,-54,-95,0,0,19,25,50,54,110,95,133,118,358,349,370,185,771,771,29992,29993,29993,29994,29994,29995,29995,29996,29996,29997,29997,29998,29998,29999,29999]} 1. c4 {[%emt 0:00:33]} e6 {[%emt 0:01:38]} 2. Nf3 {[%emt 0:00:16]} d5 {[%emt 0:00:04]} 3. d4 {[%emt 0:00:28]} Nf6 {[%emt 0:00:07]} 4. Nc3 {[%emt 0:00:11]} c5 {[%emt 0:00:39]} 5. cxd5 {[%emt 0:00:43]} Nxd5 {[%emt 0:00:07]} 6. e4 {[%emt 0:00:26]} Nxc3 {[%emt 0:00:05]} 7. bxc3 cxd4 {[%emt 0:00:07]} 8. cxd4 {[%emt 0:00:06]} Bb4+ {[%emt 0:00:05]} 9. Bd2 {[%emt 0:00:04]} Bxd2+ {[%emt 0:00:06]} 10. Qxd2 {[%emt 0:00:03]} O-O {[%emt 0:00:21]} 11. Bc4 {[%emt 0:00:23]} Nd7 {[%emt 0:01:21]} 12. O-O {[%emt 0:00:15]} b6 {[%emt 0:00:16]} 13. Rfe1 {[%emt 0:00:45]} Bb7 {[%emt 0:00:17]} 14. Rad1 {[%emt 0:05:35]} Rc8 {[%emt 0:05:33] D41: Queen's Gambit Declined: Semi-Tarrasch with 5 cxd5.} 15. Bb3 {[%emt 0:00:07]} Nf6 {[%emt 0:04:54]} 16. Qf4 {[%emt 0:01:25][%cal Od4d5]} Nh5 {[%emt 0:02:22] The position is equal.} 17. Qe5 {[%emt 0:00:55] [#]} Nf6 $146 {[%emt 0:01:10]} ({Predecessor:} 17... g6 18. d5 exd5 19. exd5 Re8 20. Qd4 Rxe1+ 21. Rxe1 Qd6 22. h3 Rd8 23. Ne5 Re8 {1-0 (34) Muradli,M (2459)-Perez Rodriguez,J (2239) Chess.com INT 2019}) 18. Ng5 {[%emt 0:04:29]} Re8 $1 {[%emt 0:15:22]} 19. Qf4 {[%emt 0:03:37] aiming for e5.} Qc7 {[%emt 0:03:04]} (19... Qe7 $11) 20. Qh4 {[%emt 0:00:42]} ({White should try} 20. e5 $1 $14 h6 21. Nxf7 $1 (21. Rc1 hxg5 22. Rxc7 gxf4 $14) 21... Qxf7 22. exf6) 20... h6 $15 {[%emt 0:03:55]} 21. Nf3 {[%emt 0:00:14][%cal Bg5f3,Bf3e5,Be5g4][%mdl 32]} b5 {[%emt 0:05:51]} 22. Ne5 {[%emt 0:04:20] [#]} Nd7 {[%emt 0:04:08]} (22... a5 $1 $17 {[%cal Ra5a4] White must now prevent ...a4.} 23. Rd3 Red8) 23. Ng4 $11 {[%emt 0:24:18][%cal Og4h6]} Qd8 {[%emt 0:06:55]} 24. Qg3 {[%emt 0:04:12] Strongly threatening d5.} Kh7 {[%emt 0:12:18]} 25. d5 {[%emt 0:02:15] Threatens to win with dxe6.} exd5 {[%emt 0:01:26]} (25... Qe7 $14) 26. exd5 $16 {[%emt 0:00:07]} ({But not} 26. Bxd5 $6 Bxd5 27. exd5 Rxe1+ 28. Rxe1 Qg5 29. Qd3+ Qg6 30. Qxg6+ Kxg6 $11) 26... Rxe1+ {[%emt 0:05:18]} 27. Rxe1 {[%emt 0:00:07]} Nb6 $2 {[%emt 0:06:52] This move loses the game for Black.} (27... Qa5 $16 28. Rd1 Qb4) 28. Qd3+ $18 {[%emt 0:07:10]} Kg8 {[%emt 0:01:53][%cal Rb7d5]} 29. Bc2 {[%emt 0:00:34]} (29. d6 $142 Qg5 30. d7) 29... f5 $2 {[%emt 0:17:29]} (29... Rxc2 30. Qxc2 Bxd5) 30. Qxf5 {[%emt 0:01:13]} Bxd5 {[%emt 0:00:18] [#]} 31. Nxh6+ $1 {[%emt 0:01:44][%mdl 512] White mates.} gxh6 {[%emt 0:00:02]} 32. Qh7+ {[%emt 0:00:05]} Kf8 {[%emt 0:00:05]} 33. Qxh6+ {[%emt 0:00:04]} Kg8 {[%emt 0:00:27]} 34. Bh7+ {[%emt 0:00:04]} Kf7 {[%emt 0:00:44]} 35. Bg6+ {[%emt 0:00:05]} Kg8 {[%emt 0:00:12]} 36. Qh7+ {[%emt 0:00:03]} Kf8 {[%emt 0:00:04]} 37. Qh8+ {[%emt 0:00:02]} Bg8 {[%emt 0:00:12]} 38. Qh6# {[%emt 0:00:02] Weighted Error Value: White=0.18 (very precise) /Black=0.75} 1-0

[Event "41st Zalakaros Festival 2022"]
[Site "Zalakaros"]
[Date "2022.06.07"]
[Round "3.7"]
[White "Peczely, Sebastian Zsombor"]
[Black "Fodor, Balazs"]
[Result "1-0"]
[ECO "B40"]
[WhiteElo "2313"]
[BlackElo "2126"]
[Annotator "TA"]
[PlyCount "131"]
[EventDate "2022.06.05"]
[EventType "swiss"]
[EventCountry "HUN"]
[SourceTitle "playchess.com"]
[Source "ChessBase"]
[SourceQuality "1"]
[TimeControl "40/5400+30:1800+30"]

{[%evp 9,131,16,15,11,45,10,18,19,35,40,32,14,31,-57,0,0,6,12,0,0,0,0,94,43,41,34,29,40,42,44,83,67,116,108,79,86,172,165,170,104,142,-4,195,80,199,198,186,174,205,185,397,389,592,240,244,240,237,239,236,227,252,246,249,251,331,331,311,272,347,321,434,418,403,400,451,466,564,554,639,662,614,623,660,655,670,670,652,568,574,565,479,559,531,550,545,539,560,539,663,612,641,612,721,650,1607,1579,1637,1579,1515,1480,1480,1436,1180,830,2455,1941,29975,29978,29977,29978,29979,29980,29978,29980]} 1. e4 {[%emt 0:04:01]} c5 {[%emt 0:00:43]} 2. Nf3 {[%emt 0:00:31]} e6 {[%emt 0:00:13]} 3. Nc3 {[%emt 0:01:26]} Nc6 {[%emt 0:00:09]} 4. Bb5 {[%emt 0:01:32]} Nge7 {[%emt 0:01:45]} 5. d4 {[%emt 0:01:34]} cxd4 {[%emt 0:01:46]} 6. Nxd4 {[%emt 0:00:08] B30: Sicilian: 2...Nc6 3 Bb5, lines without ...g6.} Qc7 {[%emt 0:02:31] [#]} 7. Bg5 $146 {[%emt 0:12:00]} ({Predecessor:} 7. O-O Ng6 8. Kh1 a6 9. Ba4 Be7 10. f4 O-O 11. Bb3 Nxd4 12. Qxd4 b5 13. f5 {½-½ (20) Epishin,V (2548)-Malakhatko,V (2552) Ferreira do Alentejo 2018}) 7... a6 {[%emt 0:08:58] [#] Threatens to win with ...Nxd4.} 8. O-O $1 {[%emt 0:05:25] The position is equal.} Nxd4 {[%emt 0:10:43]} (8... axb5 $2 9. Ndxb5 Qe5 10. Nd6+ Qxd6 11. Qxd6 $18) (8... Ng6 9. Be2) 9. Qxd4 {[%emt 0:00:09]} f6 {[%emt 0:07:39] [#]} (9... axb5 $2 10. Nxb5 Qa5 11. Nd6+ Kd8 12. Nxf7+ Ke8 13. Nd6+ Kd8 14. Rfd1 $1 $18) 10. Bh4 {[%emt 0:14:00]} Nc6 {[%emt 0:01:23]} (10... axb5 11. Nxb5 Qc6 12. Nd6+ Kd8 13. Nf7+ Ke8 14. Nd6+ (14. Nxh8 e5 $14) 14... Kd8 15. Nf7+ Ke8 16. Nxh8 $14) (10... Ng6 11. Bg3) 11. Qa4 {[%emt 0:02:06]} (11. Bxc6 $14 bxc6 12. Rfd1) 11... Bd6 {[%emt 0:05:29]} (11... Rb8 $1 $15 12. Bg3 axb5 $1 13. Nxb5 Qb6 $1 14. Nd6+ (14. Bxb8 Nxb8 15. c4 Nc6 $15) 14... Bxd6 15. Bxd6 Qxb2 $1) 12. Bg3 $11 {[%emt 0:07:07]} Bxg3 {[%emt 0:01:50]} 13. hxg3 {[%emt 0:00:06]} Ne5 {[%emt 0:03:48]} 14. Rad1 {[%emt 0:09:17]} h5 {[%emt 0:03:25]} 15. Be2 {[%emt 0:02:27]} h4 {[%emt 0:08:37]} (15... Rb8 $11) 16. gxh4 {[%emt 0:05:50]} ({White should try} 16. Nb5 $1 $16 {[%cal Rb5c7]} axb5 17. Qxa8) 16... Rxh4 $14 {[%emt 0:06:11][%cal Oe5f3] ( -> ...Nf3+!)} 17. g3 {[%emt 0:00:17]} Rh6 {[%emt 0:03:27]} 18. Nb5 {[%emt 0:03:44]} Qc5 {[%emt 0:03:37]} 19. Nd6+ {[%emt 0:04:42]} Kf8 {[%emt 0:01:37]} 20. c4 $36 {[%emt 0:03:37][%cal Bc2c4,Bc4c5][%mdl 2080] White is more active. Active counter play!} Nc6 {[%emt 0:06:17] Inhibits b4.} (20... b6 $14) 21. Qa3 $16 {[%emt 0:02:47]} Qxa3 {[%emt 0:01:32]} 22. bxa3 {[%emt 0:00:04]} Ke7 {[%emt 0:01:26]} (22... b5 $16) 23. c5 $18 {[%emt 0:00:10]} Rh8 {[%emt 0:03:05]} 24. Kg2 {[%emt 0:04:03]} (24. Rd2 $18) 24... Rb8 {[%emt 0:01:43]} 25. Nc4 {[%emt 0:00:14]} ({Better is} 25. Rh1 $16 Rg8 26. Rh7) 25... Nd8 $2 {[%emt 0:02:12] Black is now going downhill.} (25... b5 $1 $11 {and Black has nothing to worry.} 26. cxb6 d5 27. exd5 exd5 28. Rxd5 Bh3+ 29. Kg1 Bxf1 30. Kxf1 Rbd8) 26. Rd2 {[%emt 0:01:27]} (26. Nb6 $1 $18) 26... Nf7 {[%emt 0:01:33] [#]} (26... b5 $16 27. cxb6 d5) 27. Nb6 $1 {[%emt 0:05:23]} Rd8 {[%emt 0:01:10]} 28. Rc1 {[%emt 0:03:07]} d6 {[%emt 0:04:42]} 29. cxd6+ {[%emt 0:00:35]} Nxd6 $2 {[%emt 0:01:36]} (29... Rxd6 {was called for.} 30. Rxd6 (30. Rxc8 Rxd2 31. Rxb8 Rxe2 $14) (30. Nxc8+ Rxc8 31. Rxc8 Rxd2 $11) 30... Nxd6) 30. Rc7+ {[%emt 0:00:42]} Bd7 {[%emt 0:00:27]} (30... Rd7 {was necessary.} 31. Nxd7 Bxd7) 31. Bd1 {[%emt 0:01:13]} (31. f4 $142) 31... Rbc8 {[%emt 0:02:26]} 32. Nxc8+ {[%emt 0:01:48]} ({Worse is} 32. Rxd7+ Rxd7 33. e5 {[#]} (33. Nxd7 Kxd7 34. Bb3 Rc3 $15) (33. Nxc8+ Nxc8 34. Rxd7+ Kxd7 $11) 33... Rcd8 $1 $11) 32... Rxc8 {[%emt 0:00:10]} 33. Rxc8 {[%emt 0:00:10]} Nxc8 {[%emt 0:00:41][%mdl 4096] Endgame KRB-KBN} 34. f3 {[%emt 0:00:39]} Bc6 {[%emt 0:00:30]} 35. Kf2 {[%emt 0:00:11]} Nd6 {[%emt 0:01:24]} 36. Bb3 {[%emt 0:00:34] Prevents Nc4.} Nb5 {[%emt 0:01:03]} 37. a4 {[%emt 0:00:57]} Nd6 {[%emt 0:00:13]} 38. Ke3 {[%emt 0:00:47]} Ne8 {[%emt 0:00:35]} 39. Kd4 {[%emt 0:01:36]} Kd6 {[%emt 0:00:53]} 40. Kc3+ {[%emt 0:00:00]} Ke7 {[%emt 0:00:00]} 41. Kb4 {[%emt 0:04:10]} g5 {[%emt 0:09:08]} 42. g4 {[%emt 0:01:12]} Nd6 {[%emt 0:06:55]} 43. Rh2 {[%emt 0:00:52]} b6 {[%emt 0:02:07]} 44. a5 {[%emt 0:05:21]} bxa5+ {[%emt 0:00:30]} 45. Kc5 {[%emt 0:00:19]} Bb5 {[%emt 0:00:51]} 46. a4 {[%emt 0:00:28]} Be8 {[%emt 0:02:41]} 47. Rh7+ {[%emt 0:01:23]} Nf7 {[%emt 0:00:08]} 48. Kb6 {[%emt 0:00:35]} Kd6 {[%emt 0:00:16]} 49. Kxa5 {[%emt 0:00:51]} Ne5 {[%emt 0:01:11]} 50. Bd1 {[%emt 0:02:15]} Nc4+ {[%emt 0:00:25]} 51. Kb4 {[%emt 0:00:52]} Ne5 {[%emt 0:02:43]} 52. Rh8 {[%emt 0:02:06]} Nc6+ {[%emt 0:01:06]} 53. Kc3 {[%emt 0:00:44]} Ke7 {[%emt 0:01:34]} 54. Kc4 {[%emt 0:02:32]} Ne5+ {[%emt 0:00:48]} 55. Kc5 {[%emt 0:01:12]} Nd3+ {[%emt 0:00:40]} 56. Kb6 {[%emt 0:01:41][%cal Oh8e8] Black must now prevent Rxe8+!} Nb2 {[%emt 0:00:18] [#]} 57. Rxe8+ $1 {[%emt 0:00:34][%mdl 512]} Kxe8 {[%emt 0:00:06] KB-KN} 58. Bb3 {[%emt 0:00:06]} Kd7 {[%emt 0:02:01]} 59. a5 {[%emt 0:04:05]} Nd3 {[%emt 0:05:09]} 60. Ba4+ {[%emt 0:00:35]} Kd6 {[%emt 0:00:13]} 61. Kxa6 {[%emt 0:00:39]} Nc5+ {[%emt 0:00:53]} 62. Kb5 {[%emt 0:00:13]} Nxa4 {[%emt 0:00:10]} 63. Kxa4 {[%emt 0:00:06] White mates.} Kc5 {[%emt 0:00:05]} 64. a6 {[%emt 0:00:30]} Kb6 {[%emt 0:00:48]} 65. Kb4 {[%emt 0:00:03]} Kxa6 {[%emt 0:00:16]} 66. Kc5 {[%emt 0:00:05] Weighted Error Value: White=0.21 (precise) /Black=0.49} 1-0